fUST/lending_fUST_20250326
["ID","MTS","AMOUNT","RATE_DAILY","PERIOD"]
[356664992,1742935835411,-500.0,0.00011931,2]
[356664993,1742935835421,-160.74303483,0.00011931,2]
[356664994,1742935835430,-574.35730194,0.00011931,2]
[356664995,1742935835440,-500.0,0.00011931,2]
[356664996,1742935835450,-500.0,0.00011931,2]
[356664997,1742935835459,-2286.76,0.00011931,2]
[356664998,1742935835468,-500.0,0.00011931,2]
[356664999,1742935835478,-641.02,0.00011931,2]
[356665000,1742935835487,-500.0,0.00011931,2]
[356665001,1742935835496,-500.0,0.00011931,2]
[356665002,1742935835506,-500.0,0.00011931,2]
[356665003,1742935835516,-2813.88,0.00011931,2]
[356665004,1742935835525,-500.0,0.00011931,2]
[356665005,1742935835535,-849.36,0.00011931,2]
[356665006,1742935835544,-500.0,0.00011931,2]
[356665007,1742935835553,-652.47,0.00011931,2]
[356665008,1742935835563,-181.00359521,0.00011931,2]
[356665009,1742935835572,-500.0,0.00011931,2]
[356665010,1742935835582,-500.0,0.00011931,2]
[356665011,1742935835593,-1006.61,0.00011931,2]
[356665012,1742935835602,-500.0,0.00011931,2]
[356665013,1742935835612,-500.0,0.00011931,2]
[356665014,1742935835621,-500.0,0.00011931,2]
[356665015,1742935835631,-863.802533,0.00011931,2]
[356665016,1742935835641,-500.0,0.00011931,2]
[356665017,1742935835651,-863.802533,0.00011931,2]
[356665018,1742935835660,-523.51,0.00011931,2]
[356665019,1742935835670,-500.0,0.00011931,2]
[356665020,1742935835679,-7111.88,0.00011931,2]
[356665021,1742935835689,-500.0,0.00011931,2]
[356665022,1742935835699,-500.0,0.00011931,2]
[356665023,1742935835708,-500.0,0.00011931,2]
[356665024,1742935835717,-500.0,0.00011931,2]
[356665025,1742935835728,-500.0,0.00011931,2]
[356665026,1742935835737,-500.0,0.00011931,2]
[356665027,1742935835746,-1807.5,0.00011931,2]
[356665028,1742935835756,-1687.75,0.00011931,2]
[356665029,1742935835765,-1407.95,0.00011931,2]
[356665030,1742935835775,-692.43,0.00011931,2]
[356665031,1742935835784,-500.0,0.00011931,2]
[356665032,1742935835793,-677.34,0.00011931,2]
[356665033,1742935835803,-1304.6,0.00011931,2]
[356665034,1742935835813,-500.0,0.00011931,2]
[356665035,1742935835824,-500.0,0.00011931,2]
[356665036,1742935835834,-500.0,0.00011931,2]
[356665037,1742935835843,-680.64,0.00011931,2]
[356665038,1742935835853,-7586.32,0.00011931,2]
[356665039,1742935835862,-384.73095345,0.00011931,2]
[356665040,1742935835872,-746.14595463,0.00011981,2]
[356665041,1742935835881,-151.0,0.00012,2]
[356665042,1742935835890,-500.0,0.00012015,2]
[356665043,1742935835899,-994.5,0.0001203,2]
[356665044,1742935835909,-500.0,0.0001203,2]
[356665045,1742935835919,-500.0,0.0001203,2]
[356665046,1742935835928,-500.0,0.0001203,2]
[356665047,1742935835938,-520.08,0.0001203,2]
[356665048,1742935835947,-500.0,0.0001203,2]
[356665049,1742935835956,-500.0,0.0001203,2]
[356665050,1742935835966,-500.0,0.0001203,2]
[356665051,1742935835976,-500.0,0.0001203,2]
[356665052,1742935835986,-529.28,0.0001203,2]
[356665053,1742935835996,-500.0,0.0001203,2]
[356665054,1742935836008,-500.0,0.0001203,2]
[356665055,1742935836018,-500.0,0.0001203,2]
[356665056,1742935836028,-836.31,0.0001203,2]
[356665057,1742935836037,-500.0,0.0001203,2]
[356665058,1742935836048,-500.0,0.0001203,2]
[356665059,1742935836057,-500.0,0.0001203,2]
[356665060,1742935836067,-500.0,0.0001203,2]
[356665061,1742935836077,-500.0,0.0001203,2]
[356665062,1742935836087,-500.0,0.0001203,2]
[356665063,1742935836241,-500.0,0.0001203,2]
[356665064,1742935836252,-500.0,0.0001203,2]
[356665065,1742935836261,-500.0,0.0001203,2]
[356665066,1742935836271,-500.0,0.0001203,2]
[356665067,1742935836280,-500.0,0.0001203,2]
[356665068,1742935836289,-500.0,0.0001203,2]
[356665069,1742935836299,-500.0,0.0001203,2]
[356665070,1742935836309,-500.0,0.0001203,2]
[356665071,1742935836319,-500.0,0.0001203,2]
[356665072,1742935836328,-500.0,0.0001203,2]
[356665073,1742935836338,-500.0,0.0001203,2]
[356665074,1742935836347,-500.0,0.0001203,2]
[356665075,1742935836356,-500.0,0.0001203,2]
[356665076,1742935836366,-500.0,0.0001203,2]
[356665077,1742935836375,-500.0,0.0001203,2]
[356665078,1742935836385,-500.0,0.0001203,2]
[356665079,1742935836394,-569.86,0.0001203,2]
[356665080,1742935836404,-500.0,0.0001203,2]
[356665081,1742935836413,-500.0,0.0001203,2]
[356665082,1742935836422,-500.0,0.0001203,2]
[356665083,1742935836431,-500.0,0.0001203,2]
[356665084,1742935836440,-1098.74,0.0001203,2]
[356665085,1742935836450,-500.0,0.0001203,2]
[356665086,1742935836460,-500.0,0.0001203,2]
[356665087,1742935836476,-1057.52,0.0001203,2]
[356665088,1742935836488,-500.0,0.0001203,2]
[356665089,1742935836497,-500.0,0.0001203,2]
[356665090,1742935836506,-799.11,0.0001203,2]
[356665091,1742935836516,-500.0,0.0001203,2]
[356665092,1742935836525,-1165.11,0.0001203,2]
[356665093,1742935836534,-1453.93,0.0001203,2]
[356665094,1742935836543,-3113.7,0.0001203,2]
[356665095,1742935836552,-3954.09,0.0001203,2]
[356665096,1742935836562,-500.0,0.0001203,2]
[356665097,1742935836571,-500.0,0.0001203,2]
[356665098,1742935836581,-500.0,0.0001203,2]
[356665099,1742935836590,-722.36,0.0001203,2]
[356665100,1742935836600,-522.52,0.0001203,2]
[356665101,1742935836609,-569.24365374,0.0001203,2]
[356665102,1742935836619,-863.802533,0.0001203,2]
[356665103,1742935836629,-863.802533,0.0001203,2]
[356665104,1742935836639,-2830.7,0.0001203,2]
[356665105,1742935836648,-500.0,0.0001203,2]
[356665106,1742935836657,-863.802533,0.0001203,2]
[356665107,1742935836667,-807.67,0.0001203,2]
[356665108,1742935836676,-863.80254224,0.0001203,2]
[356665109,1742935836685,-106301.7,0.0001203,2]
[356665110,1742935836695,-500.0,0.0001203,2]
[356665111,1742935836704,-3031.52,0.0001203,2]
[356665112,1742935836713,-500.0,0.0001203,2]
[356665113,1742935836723,-500.0,0.0001203,2]
[356665114,1742935836732,-1123.9,0.0001203,2]
[356665115,1742935836742,-500.0,0.0001203,2]
[356665116,1742935836752,-500.0,0.0001203,2]
[356665117,1742935836762,-938.53,0.0001203,2]
[356665118,1742935836771,-500.0,0.0001203,2]
[356665119,1742935836781,-500.0,0.0001203,2]
[356665120,1742935836791,-1084.99,0.0001203,2]
[356665121,1742935836801,-500.0,0.0001203,2]
[356665122,1742935836810,-500.0,0.0001203,2]
[356665123,1742935836819,-1213.38,0.0001203,2]
[356665124,1742935836829,-4346.59,0.0001203,2]
[356665125,1742935836838,-500.0,0.0001203,2]
[356665126,1742935836847,-1355.47,0.0001203,2]
[356665127,1742935836856,-500.0,0.0001203,2]
[356665128,1742935836866,-1338.48,0.0001203,2]
[356665129,1742935836875,-500.0,0.00012032,2]
[356665130,1742935836884,-169.06,0.00012032,2]
[356665131,1742935836894,-500.0,0.00012032,2]
[356665132,1742935836903,-500.0,0.00012032,2]
[356665133,1742935836912,-500.0,0.00012032,2]
[356665134,1742935836921,-500.0,0.00012032,2]
[356665135,1742935836931,-500.0,0.00012032,2]
[356665136,1742935836940,-500.0,0.00012032,2]
[356665137,1742935836949,-500.0,0.00012032,2]
[356665138,1742935836958,-500.0,0.00012032,2]
[356665139,1742935836968,-500.0,0.00012032,2]
[356665140,1742935836978,-500.0,0.00012032,2]
[356665141,1742935836987,-556.44,0.00012032,2]
[356665142,1742935836997,-500.0,0.00012032,2]
[356665143,1742935837009,-500.0,0.00012032,2]
[356665144,1742935837018,-500.0,0.00012032,2]
[356665145,1742935837028,-500.0,0.00012032,2]
[356665146,1742935837037,-636.54,0.00012032,2]
[356665147,1742935837046,-500.0,0.00012032,2]
[356665148,1742935837056,-500.0,0.00012032,2]
[356665149,1742935837065,-679.68,0.00012032,2]
[356665150,1742935837074,-500.0,0.00012032,2]
[356665151,1742935837085,-597.95,0.00012032,2]
[356665152,1742935837094,-500.0,0.00012032,2]
[356665153,1742935837104,-1184.12,0.00012032,2]
[356665154,1742935837113,-216.59834001,0.00012032,2]
[356665155,1742935837124,-613.36,0.00012032,2]
[356665156,1742935837134,-506.33444269,0.00012032,2]
[356665157,1742935837143,-532.61,0.00012032,2]
[356665158,1742935837152,-500.0,0.00012032,2]
[356665159,1742935837161,-500.0,0.00012032,2]
[356665160,1742935837171,-500.0,0.00012032,2]
[356665161,1742935837180,-500.0,0.00012032,2]
[356665162,1742935837189,-500.0,0.00012032,2]
[356665163,1742935837199,-500.0,0.00012032,2]
[356665164,1742935837208,-500.0,0.00012032,2]
[356665165,1742935837218,-614.44,0.00012032,2]
[356665166,1742935837227,-500.0,0.00012032,2]
[356665167,1742935837236,-500.0,0.00012032,2]
[356665168,1742935837246,-500.0,0.00012032,2]
[356665169,1742935837255,-761.91,0.00012032,2]
[356665170,1742935837264,-1221.17,0.00012032,2]
[356665171,1742935837274,-500.0,0.00012032,2]
[356665172,1742935837282,-500.0,0.00012032,2]
[356665173,1742935837292,-1058.65,0.00012032,2]
[356665174,1742935837301,-2809.39,0.00012032,2]
[356665175,1742935837310,-500.0,0.00012032,2]
[356665176,1742935837319,-500.0,0.00012032,2]
[356665177,1742935837328,-500.0,0.00012032,2]
[356665178,1742935837338,-500.0,0.00012032,2]
[356665179,1742935837347,-500.0,0.00012032,2]
[356665180,1742935837358,-500.0,0.00012032,2]
[356665181,1742935837370,-500.0,0.00012032,2]
[356665182,1742935837380,-500.0,0.00012032,2]
[356665183,1742935837390,-500.0,0.00012032,2]
[356665184,1742935837399,-500.0,0.00012032,2]
[356665185,1742935837408,-500.0,0.00012032,2]
[356665186,1742935837417,-659.06,0.00012032,2]
[356665187,1742935837427,-500.0,0.00012032,2]
[356665188,1742935837436,-500.0,0.00012032,2]
[356665189,1742935837446,-500.0,0.00012032,2]
[356665190,1742935837455,-500.0,0.00012032,2]
[356665191,1742935837469,-500.0,0.00012032,2]
[356665192,1742935837480,-773.75335495,0.00012036,2]
[356665194,1742935837490,-356.50855263,0.00012057,2]
[356665196,1742935837499,-317.0,0.00012057,2]
[356665198,1742935837508,-424.79737309,0.00012057,2]
[356665201,1742935837517,-192.0,0.00012065,2]
[356665203,1742935837527,-500.0,0.00012073,2]
[356665204,1742935837537,-500.0,0.00012073,2]
[356665205,1742935837546,-151.0,0.000121,2]
[356665206,1742935837555,-316.0,0.00012121,2]
[356665207,1742935837564,-240.5601574,0.00012199,2]
[356665208,1742935837573,-151.0,0.000122,2]
[356665209,1742935837583,-151.0,0.000122,2]
[356665211,1742935837592,-500.0,0.00012204,2]
[356665213,1742935837602,-5508.75,0.00012204,2]
[356665216,1742935837621,-1634.3,0.00012204,2]
[356665218,1742935837632,-500.0,0.00012204,2]
[356665220,1742935837641,-500.0,0.00012204,2]
[356665222,1742935837651,-4108.16,0.00012204,2]
[356665224,1742935837661,-721.09,0.00012204,2]
[356665226,1742935837670,-500.0,0.00012204,2]
[356665228,1742935837680,-3194.26,0.00012204,2]
[356665230,1742935837690,-596.73,0.00012204,2]
[356665232,1742935837700,-500.0,0.00012204,2]
[356665234,1742935837710,-500.0,0.00012204,2]
[356665237,1742935837719,-500.0,0.00012205,2]
[356665239,1742935837729,-500.0,0.00012205,2]
[356665241,1742935837739,-2286.76,0.00012205,2]
[356665243,1742935837748,-500.0,0.00012205,2]
[356665245,1742935837758,-500.0,0.00012205,2]
[356665247,1742935837767,-641.02,0.00012205,2]
[356665249,1742935837777,-500.0,0.00012205,2]
[356665251,1742935837787,-222.2180819,0.00012205,2]
[356665253,1742935837796,-500.0,0.00012205,2]
[356665255,1742935837806,-2813.88,0.00012205,2]
[356665257,1742935837815,-500.0,0.00012205,2]
[356665259,1742935837825,-849.36,0.00012205,2]
[356665261,1742935837834,-500.0,0.00012205,2]
[356665263,1742935837844,-652.47,0.00012205,2]
[356665265,1742935837853,-500.0,0.00012205,2]
[356665267,1742935837863,-500.0,0.00012205,2]
[356665269,1742935837873,-1006.61,0.00012205,2]
[356665272,1742935837883,-500.0,0.00012205,2]
[356665274,1742935837893,-500.0,0.00012205,2]
[356665276,1742935837903,-500.0,0.00012205,2]
[356665278,1742935837912,-500.0,0.00012205,2]
[356665280,1742935837921,-523.51,0.00012205,2]
[356665282,1742935837931,-500.0,0.00012205,2]
[356665284,1742935837940,-7111.88,0.00012205,2]
[356665286,1742935837950,-500.0,0.00012205,2]
[356665288,1742935837960,-500.0,0.00012205,2]
[356665290,1742935837969,-500.0,0.00012205,2]
[356665291,1742935837979,-500.0,0.00012205,2]
[356665292,1742935837988,-500.0,0.00012205,2]
[356665293,1742935837999,-500.0,0.00012205,2]
[356665294,1742935838012,-1807.5,0.00012205,2]
[356665295,1742935838021,-1687.75,0.00012205,2]
[356665296,1742935838030,-1407.95,0.00012205,2]
[356665297,1742935838040,-692.43,0.00012205,2]
[356665298,1742935838050,-500.0,0.00012205,2]
[356665299,1742935838060,-677.34,0.00012205,2]
[356665300,1742935838070,-1304.6,0.00012205,2]
[356665301,1742935838080,-500.0,0.00012205,2]
[356665302,1742935838090,-500.0,0.00012205,2]
[356665303,1742935838100,-500.0,0.00012205,2]
[356665304,1742935838110,-680.64,0.00012205,2]
[356665305,1742935838119,-7586.32,0.00012205,2]
[356665307,1742935838129,-151.0,0.000123,2]
[356665309,1742935838139,-151.0,0.000123,2]
[356665310,1742935838149,-151.0,0.000123,2]
[356665313,1742935838159,-500.0,0.00012304,2]
[356665315,1742935838171,-500.0,0.00012304,2]
[356665317,1742935838180,-500.0,0.00012304,2]
[356665319,1742935838190,-520.08,0.00012304,2]
[356665321,1742935838200,-500.0,0.00012304,2]
[356665323,1742935838209,-500.0,0.00012304,2]
[356665325,1742935838219,-500.0,0.00012304,2]
[356665327,1742935838229,-500.0,0.00012304,2]
[356665328,1742935838238,-529.28,0.00012304,2]
[356665331,1742935838248,-500.0,0.00012304,2]
[356665333,1742935838257,-500.0,0.00012304,2]
[356665335,1742935838267,-500.0,0.00012304,2]
[356665337,1742935838276,-836.31,0.00012304,2]
[356665338,1742935838285,-500.0,0.00012304,2]
[356665341,1742935838295,-500.0,0.00012304,2]
[356665342,1742935838305,-500.0,0.00012304,2]
[356665344,1742935838315,-500.0,0.00012304,2]
[356665346,1742935838324,-500.0,0.00012304,2]
[356665348,1742935838334,-500.0,0.00012304,2]
[356665349,1742935838343,-500.0,0.00012304,2]
[356665351,1742935838353,-500.0,0.00012304,2]
[356665353,1742935838362,-500.0,0.00012304,2]
[356665354,1742935838372,-500.0,0.00012304,2]
[356665355,1742935838383,-500.0,0.00012304,2]
[356665356,1742935838393,-500.0,0.00012304,2]
[356665357,1742935838402,-500.0,0.00012304,2]
[356665358,1742935838411,-500.0,0.00012304,2]
[356665359,1742935838420,-500.0,0.00012304,2]
[356665360,1742935838429,-500.0,0.00012304,2]
[356665361,1742935838439,-500.0,0.00012304,2]
[356665362,1742935838448,-500.0,0.00012304,2]
[356665363,1742935838458,-500.0,0.00012304,2]
[356665364,1742935838468,-500.0,0.00012304,2]
[356665365,1742935838478,-500.0,0.00012304,2]
[356665366,1742935838488,-500.0,0.00012304,2]
[356665367,1742935838497,-569.86,0.00012304,2]
[356665368,1742935838506,-500.0,0.00012304,2]
[356665369,1742935838516,-500.0,0.00012304,2]
[356665370,1742935838525,-500.0,0.00012304,2]
[356665371,1742935838535,-500.0,0.00012304,2]
[356665372,1742935838544,-1098.74,0.00012304,2]
[356665373,1742935838553,-500.0,0.00012304,2]
[356665374,1742935838562,-500.0,0.00012304,2]
[356665375,1742935838571,-1057.52,0.00012304,2]
[356665376,1742935838580,-500.0,0.00012304,2]
[356665377,1742935838590,-500.0,0.00012304,2]
[356665378,1742935838599,-799.11,0.00012304,2]
[356665379,1742935838608,-500.0,0.00012304,2]
[356665380,1742935838617,-1165.11,0.00012304,2]
[356665381,1742935838626,-1453.93,0.00012304,2]
[356665382,1742935838635,-3113.7,0.00012304,2]
[356665383,1742935838644,-3954.09,0.00012304,2]
[356665384,1742935838653,-500.0,0.00012304,2]
[356665385,1742935838663,-500.0,0.00012304,2]
[356665386,1742935838672,-500.0,0.00012304,2]
[356665387,1742935838681,-522.52,0.00012304,2]
[356665388,1742935838691,-722.36,0.00012304,2]
[356665389,1742935838700,-2830.7,0.00012304,2]
[356665390,1742935838709,-500.0,0.00012304,2]
[356665391,1742935838719,-807.67,0.00012304,2]
[356665392,1742935838728,-106301.7,0.00012304,2]
[356665393,1742935838737,-500.0,0.00012304,2]
[356665394,1742935838747,-3031.52,0.00012304,2]
[356665395,1742935838756,-500.0,0.00012304,2]
[356665396,1742935838766,-500.0,0.00012304,2]
[356665397,1742935838775,-1123.9,0.00012304,2]
[356665398,1742935838785,-500.0,0.00012304,2]
[356665399,1742935838794,-500.0,0.00012304,2]
[356665400,1742935838804,-938.53,0.00012304,2]
[356665401,1742935838813,-500.0,0.00012304,2]
[356665402,1742935838823,-535.27492655,0.00012304,2]
[356665403,1742935838832,-1084.99,0.00012304,2]
[356665404,1742935838842,-500.0,0.00012304,2]
[356665405,1742935838851,-500.0,0.00012304,2]
[356665406,1742935838861,-1213.38,0.00012304,2]
[356665407,1742935838870,-4346.59,0.00012304,2]
[356665408,1742935838880,-500.0,0.00012304,2]
[356665409,1742935838889,-1355.47,0.00012304,2]
[356665410,1742935838899,-500.0,0.00012304,2]
[356665411,1742935838909,-1338.48,0.00012304,2]
[356665412,1742935838918,-500.0,0.00012306,2]
[356665413,1742935838927,-500.0,0.00012306,2]
[356665414,1742935838937,-500.0,0.00012306,2]
[356665415,1742935838947,-500.0,0.00012306,2]
[356665416,1742935838957,-500.0,0.00012306,2]
[356665417,1742935838968,-500.0,0.00012306,2]
[356665418,1742935838979,-500.0,0.00012306,2]
[356665419,1742935838989,-500.0,0.00012306,2]
[356665420,1742935839000,-500.0,0.00012306,2]
[356665421,1742935839011,-500.0,0.00012306,2]
[356665422,1742935839020,-500.0,0.00012306,2]
[356665423,1742935839029,-556.44,0.00012306,2]
[356665424,1742935839040,-357.37131392,0.00012306,2]
[356665425,1742935839050,-500.0,0.00012306,2]
[356665426,1742935839061,-500.0,0.00012306,2]
[356665427,1742935839070,-500.0,0.00012306,2]
[356665428,1742935839081,-636.54,0.00012306,2]
[356665429,1742935839090,-500.0,0.00012306,2]
[356665430,1742935839099,-500.0,0.00012306,2]
[356665431,1742935839109,-679.68,0.00012306,2]
[356665432,1742935839118,-500.0,0.00012306,2]
[356665433,1742935839128,-597.95,0.00012306,2]
[356665434,1742935839278,-500.0,0.00012306,2]
[356665435,1742935839288,-1184.12,0.00012306,2]
[356665436,1742935839298,-613.36,0.00012306,2]
[356665437,1742935839308,-532.61,0.00012306,2]
[356665438,1742935839317,-500.0,0.00012306,2]
[356665439,1742935839327,-500.0,0.00012306,2]
[356665440,1742935839336,-500.0,0.00012306,2]
[356665441,1742935839346,-500.0,0.00012306,2]
[356665442,1742935839358,-500.0,0.00012306,2]
[356665443,1742935839368,-500.0,0.00012306,2]
[356665444,1742935839378,-500.0,0.00012306,2]
[356665445,1742935839388,-614.44,0.00012306,2]
[356665446,1742935839398,-500.0,0.00012306,2]
[356665447,1742935839408,-500.0,0.00012306,2]
[356665448,1742935839419,-500.0,0.00012306,2]
[356665449,1742935839428,-761.91,0.00012306,2]
[356665450,1742935839438,-1221.17,0.00012306,2]
[356665451,1742935839448,-500.0,0.00012306,2]
[356665452,1742935839458,-500.0,0.00012306,2]
[356665453,1742935839467,-1058.65,0.00012306,2]
[356665454,1742935839477,-2809.39,0.00012306,2]
[356665455,1742935839486,-500.0,0.00012306,2]
[356665456,1742935839496,-500.0,0.00012306,2]
[356665457,1742935839505,-500.0,0.00012306,2]
[356665458,1742935839515,-500.0,0.00012306,2]
[356665459,1742935839524,-500.0,0.00012306,2]
[356665460,1742935839534,-500.0,0.00012306,2]
[356665461,1742935839544,-450.22276402,0.00012306,2]
[356665462,1742935839554,-409.70901646,0.00012306,2]
[356665463,1742935839564,-500.0,0.00012306,2]
[356665464,1742935839574,-500.0,0.00012306,2]
[356665465,1742935839584,-500.0,0.00012306,2]
[356665466,1742935839594,-659.06,0.00012306,2]
[356665467,1742935839604,-500.0,0.00012306,2]
[356665468,1742935839613,-500.0,0.00012306,2]
[356665470,1742935839623,-500.0,0.00012306,2]
[356665472,1742935839633,-500.0,0.00012306,2]
[356665474,1742935839642,-500.0,0.00012306,2]
[356665475,1742935839652,-166.56729777,0.00012373,2]
[356665476,1742935839661,-500.0,0.00012373,2]
[356665477,1742935839670,-500.0,0.00012373,2]
[356665478,1742935839680,-150.0,0.0001238,2]
[356665479,1742935839690,-541.0,0.0001238,2]
[356665480,1742935839701,-2268.0,0.0001238,2]
[356665481,1742935839710,-1915.0,0.0001238,2]
[356665482,1742935839720,-400.0,0.0001238,2]
[356665483,1742935839730,-150.0,0.0001238,2]
[356665484,1742935839740,-151.0,0.000124,2]
[356665485,1742935839749,-151.0,0.000124,2]
[356665486,1742935839759,-500.0,0.00012478,2]
[356665487,1742935839769,-5508.75,0.00012478,2]
[356665488,1742935839778,-1634.3,0.00012478,2]
[356665489,1742935839787,-500.0,0.00012478,2]
[356665490,1742935839798,-500.0,0.00012478,2]
[356665491,1742935839807,-4108.16,0.00012478,2]
[356665492,1742935839816,-721.09,0.00012478,2]
[356665493,1742935839826,-500.0,0.00012478,2]
[356665494,1742935839836,-3194.26,0.00012478,2]
[356665496,1742935839846,-596.73,0.00012478,2]
[356665498,1742935839856,-500.0,0.00012478,2]
[356665500,1742935839865,-500.0,0.00012478,2]
[356665502,1742935839875,-500.0,0.00012479,2]
[356665504,1742935839885,-500.0,0.00012479,2]
[356665506,1742935839894,-2286.76,0.00012479,2]
[356665508,1742935839904,-500.0,0.00012479,2]
[356665510,1742935839913,-500.0,0.00012479,2]
[356665512,1742935839923,-641.02,0.00012479,2]
[356665514,1742935839933,-375.73084459,0.00012479,2]
[356665516,1742935839943,-500.0,0.00012479,2]
[356665518,1742935839952,-2813.88,0.00012479,2]
[356665520,1742935839961,-500.0,0.00012479,2]
[356665522,1742935839970,-849.36,0.00012479,2]
[356665524,1742935839981,-500.0,0.00012479,2]
[356665527,1742935839991,-652.47,0.00012479,2]
[356665529,1742935840004,-500.0,0.00012479,2]
[356665531,1742935840014,-500.0,0.00012479,2]
[356665533,1742935840023,-1006.61,0.00012479,2]
[356665535,1742935840033,-500.0,0.00012479,2]
[356665537,1742935840043,-500.0,0.00012479,2]
[356665538,1742935840052,-500.0,0.00012479,2]
[356665541,1742935840061,-500.0,0.00012479,2]
[356665542,1742935840070,-523.51,0.00012479,2]
[356665544,1742935840081,-500.0,0.00012479,2]
[356665547,1742935840091,-7111.88,0.00012479,2]
[356665548,1742935840100,-500.0,0.00012479,2]
[356665551,1742935840110,-500.0,0.00012479,2]
[356665553,1742935840119,-500.0,0.00012479,2]
[356665555,1742935840129,-500.0,0.00012479,2]
[356665557,1742935840139,-500.0,0.00012479,2]
[356665559,1742935840148,-500.0,0.00012479,2]
[356665561,1742935840158,-1807.5,0.00012479,2]
[356665563,1742935840167,-1687.75,0.00012479,2]
[356665565,1742935840176,-1407.95,0.00012479,2]
[356665567,1742935840186,-692.43,0.00012479,2]
[356665569,1742935840195,-500.0,0.00012479,2]
[356665571,1742935840206,-677.34,0.00012479,2]
[356665573,1742935840215,-1304.6,0.00012479,2]
[356665575,1742935840224,-500.0,0.00012479,2]
[356665577,1742935840234,-500.0,0.00012479,2]
[356665579,1742935840243,-500.0,0.00012479,2]
[356665581,1742935840252,-680.64,0.00012479,2]
[356665583,1742935840262,-7586.32,0.00012479,2]
[356665585,1742935840271,-151.0,0.000125,2]
[356665587,1742935840280,-1016.19230325,0.000125,2]
[356665589,1742935840289,-151.0,0.000125,2]
[356665591,1742935840299,-500.0,0.00012578,2]
[356665593,1742935840308,-500.0,0.00012578,2]
[356665595,1742935840317,-500.0,0.00012578,2]
[356665597,1742935840326,-520.08,0.00012578,2]
[356665599,1742935840335,-500.0,0.00012578,2]
[356665601,1742935840345,-500.0,0.00012578,2]
[356665603,1742935840354,-500.0,0.00012578,2]
[356665605,1742935840364,-480.60062801,0.00012578,2]
[356665607,1742935840373,-529.28,0.00012578,2]
[356665609,1742935840383,-500.0,0.00012578,2]
[356665611,1742935840392,-500.0,0.00012578,2]
[356665613,1742935840402,-500.0,0.00012578,2]
[356665615,1742935840411,-836.31,0.00012578,2]
[356665617,1742935840420,-500.0,0.00012578,2]
[356665619,1742935840429,-500.0,0.00012578,2]
[356665621,1742935840439,-500.0,0.00012578,2]
[356665623,1742935840448,-500.0,0.00012578,2]
[356665624,1742935840458,-500.0,0.00012578,2]
[356665626,1742935840467,-500.0,0.00012578,2]
[356665627,1742935840478,-500.0,0.00012578,2]
[356665628,1742935840488,-500.0,0.00012578,2]
[356665629,1742935840497,-500.0,0.00012578,2]
[356665630,1742935840506,-500.0,0.00012578,2]
[356665631,1742935840515,-500.0,0.00012578,2]